[Event "Late-Titled-Tuesday-Blitz-February-06-2024"]
[Site "Chess.com"]
[Date "2024.02.06"]
[Round "3"]
[White "ameetghasi100"]
[Black "betta2004"]
[Result "1/2-1/2"]
[WhiteElo "2734"]
[BlackElo "2547"]
[TimeControl "180+1"]
[EndTime "14:31:03 PST"]
[Termination "Game drawn by repetition"]

1. d4 {[%clk 0:03:00.9]} 1... Nf6 {[%clk 0:02:48.7]} 2. Nf3 {[%clk 0:03:00.1]}
2... c5 {[%clk 0:02:41.6]} 3. d5 {[%clk 0:02:58.5]} 3... g6 {[%clk 0:02:39.8]}
4. Nc3 {[%clk 0:02:57.5]} 4... d6 {[%clk 0:02:37.5]} 5. e4 {[%clk 0:02:57.6]}
5... Bg7 {[%clk 0:02:38.1]} 6. Bb5+ {[%clk 0:02:57.9]} 6... Nbd7 {[%clk
0:02:33.7]} 7. a4 {[%clk 0:02:58.8]} 7... O-O {[%clk 0:02:32.7]} 8. O-O {[%clk
0:02:58.8]} 8... a6 {[%clk 0:02:31.6]} 9. Be2 {[%clk 0:02:59.1]} 9... Ne8 {[%clk
0:02:22.9]} 10. Bf4 {[%clk 0:02:58.4]} 10... Ne5 {[%clk 0:02:12.7]} 11. Nxe5
{[%clk 0:02:55.4]} 11... dxe5 {[%clk 0:02:13.6]} 12. Be3 {[%clk 0:02:55.7]}
12... Qc7 {[%clk 0:02:12.9]} 13. a5 {[%clk 0:02:55.8]} 13... Nd6 {[%clk
0:02:12.7]} 14. f3 {[%clk 0:02:53.4]} 14... f5 {[%clk 0:02:13]} 15. Qd2 {[%clk
0:02:51.2]} 15... Bd7 {[%clk 0:02:07.3]} 16. b3 {[%clk 0:02:23.3]} 16... Bb5
{[%clk 0:02:02]} 17. h3 {[%clk 0:02:08.1]} 17... Rad8 {[%clk 0:01:35.9]} 18. Bf2
{[%clk 0:02:03.1]} 18... Rc8 {[%clk 0:01:17]} 19. Bxb5 {[%clk 0:01:55.8]} 19...
axb5 {[%clk 0:01:13.9]} 20. Qe2 {[%clk 0:01:54]} 20... Qd7 {[%clk 0:01:11.8]}
21. a6 {[%clk 0:01:52.6]} 21... b4 {[%clk 0:01:09.5]} 22. Na4 {[%clk 0:01:50.7]}
22... bxa6 {[%clk 0:00:45.8]} 23. Nxc5 {[%clk 0:01:33.8]} 23... Qb5 {[%clk
0:00:44]} 24. Qxb5 {[%clk 0:01:33.3]} 24... Nxb5 {[%clk 0:00:44.4]} 25. Ne6
{[%clk 0:01:07.5]} 25... Rfe8 {[%clk 0:00:33.7]} 26. Bc5 {[%clk 0:01:06.3]}
26... Na3 {[%clk 0:00:22.9]} 27. c4 {[%clk 0:01:01.4]} 27... Bh6 {[%clk
0:00:20.1]} 28. Ra2 {[%clk 0:00:48.5]} 28... Rxc5 {[%clk 0:00:18.9]} 29. Nxc5
{[%clk 0:00:48.4]} 29... Be3+ {[%clk 0:00:18.9]} 30. Kh1 {[%clk 0:00:49]} 30...
Bxc5 {[%clk 0:00:19.8]} 31. Re1 {[%clk 0:00:48.7]} 31... f4 {[%clk 0:00:18]} 32.
Rd1 {[%clk 0:00:47.7]} 32... a5 {[%clk 0:00:16.8]} 33. Rb2 {[%clk 0:00:47.1]}
33... Kf7 {[%clk 0:00:15.5]} 34. Kh2 {[%clk 0:00:45.3]} 34... Rc8 {[%clk
0:00:14.6]} 35. Rd3 {[%clk 0:00:45]} 35... Kf6 {[%clk 0:00:15.1]} 36. h4 {[%clk
0:00:44.4]} 36... Bd4 {[%clk 0:00:15]} 37. Ra2 {[%clk 0:00:42.4]} 37... Rc5
{[%clk 0:00:15.3]} 38. Kh3 {[%clk 0:00:41.8]} 38... a4 {[%clk 0:00:13.8]} 39.
bxa4 {[%clk 0:00:41.9]} 39... Nxc4 {[%clk 0:00:14.5]} 40. Rb3 {[%clk 0:00:40.3]}
40... Bc3 {[%clk 0:00:15]} 41. Rc2 {[%clk 0:00:35.7]} 41... Na5 {[%clk
0:00:12.2]} 42. Rb1 {[%clk 0:00:35.2]} 42... b3 {[%clk 0:00:10.9]} 43. Rcc1
{[%clk 0:00:32.9]} 43... Bd4 {[%clk 0:00:08.3]} 44. Rd1 {[%clk 0:00:27.2]} 44...
Rc2 {[%clk 0:00:06.3]} 45. Rd3 {[%clk 0:00:24.8]} 45... b2 {[%clk 0:00:05.6]}
46. Rdd1 {[%clk 0:00:20.6]} 46... Nc4 {[%clk 0:00:04.7]} 47. Re1 {[%clk
0:00:20.8]} 47... Na3 {[%clk 0:00:02]} 48. Rbd1 {[%clk 0:00:21]} 48... b1=Q
{[%clk 0:00:01.6]} 49. Rxb1 {[%clk 0:00:21.4]} 49... Nxb1 {[%clk 0:00:02.5]} 50.
Rxb1 {[%clk 0:00:22.2]} 50... Ra2 {[%clk 0:00:03.3]} 51. Rb4 {[%clk 0:00:22.7]}
51... Kf7 {[%clk 0:00:03.6]} 52. Rc4 {[%clk 0:00:21.6]} 52... Bc3 {[%clk
0:00:04.2]} 53. Rxc3 {[%clk 0:00:21.3]} 53... Rxa4 {[%clk 0:00:04.8]} 54. Rc7
{[%clk 0:00:21.1]} 54... Ra1 {[%clk 0:00:05.3]} 55. Kh2 {[%clk 0:00:17.1]} 55...
h5 {[%clk 0:00:05.7]} 56. d6 {[%clk 0:00:17.1]} 56... Ra6 {[%clk 0:00:04.9]} 57.
Rxe7+ {[%clk 0:00:10.1]} 57... Kf6 {[%clk 0:00:04.8]} 58. Rd7 {[%clk 0:00:08.1]}
58... Ke6 {[%clk 0:00:05.3]} 59. Rg7 {[%clk 0:00:07.9]} 59... Kf6 {[%clk
0:00:05.7]} 60. d7 {[%clk 0:00:05.3]} 60... Rd6 {[%clk 0:00:06.1]} 61. Rh7
{[%clk 0:00:05.7]} 61... Rd1 {[%clk 0:00:06.3]} 62. g3 {[%clk 0:00:04.3]} 62...
Rd2+ {[%clk 0:00:06]} 63. Kh3 {[%clk 0:00:04.3]} 63... Rd3 {[%clk 0:00:04.7]}
64. gxf4 {[%clk 0:00:03.8]} 64... Rxf3+ {[%clk 0:00:04.4]} 65. Kg2 {[%clk
0:00:04.3]} 65... Rd3 {[%clk 0:00:05.3]} 66. fxe5+ {[%clk 0:00:03.4]} 66... Kxe5
{[%clk 0:00:06.2]} 67. Re7+ {[%clk 0:00:03.2]} 67... Kf6 {[%clk 0:00:06.3]} 68.
Rh7 {[%clk 0:00:03.4]} 68... Ke6 {[%clk 0:00:06.7]} 69. Rg7 {[%clk 0:00:03]}
69... Kf6 {[%clk 0:00:07]} 70. Rh7 {[%clk 0:00:03.2]} 70... Ke6 {[%clk
0:00:07.4]} 71. Kf2 {[%clk 0:00:03.6]} 71... Rxd7 {[%clk 0:00:06.6]} 72. Rxd7
{[%clk 0:00:02.9]} 72... Kxd7 {[%clk 0:00:07.5]} 73. Kf3 {[%clk 0:00:03.5]}
73... Ke6 {[%clk 0:00:08]} 74. Kf4 {[%clk 0:00:04.4]} 74... Kf6 {[%clk
0:00:08.6]} 75. e5+ {[%clk 0:00:04.5]} 75... Ke6 {[%clk 0:00:09.2]} 76. Kg5
{[%clk 0:00:05.4]} 76... Kxe5 {[%clk 0:00:09.9]} 77. Kxg6 {[%clk 0:00:06.3]}
77... Ke6 {[%clk 0:00:09.2]} 78. Kxh5 {[%clk 0:00:06.9]} 78... Kf7 {[%clk
0:00:10.1]} 79. Kh6 {[%clk 0:00:07.5]} 79... Kg8 {[%clk 0:00:11]} 80. Kg5 {[%clk
0:00:08.3]} 80... Kh8 {[%clk 0:00:11.9]} 81. h5 {[%clk 0:00:09.1]} 81... Kg8
{[%clk 0:00:12.8]} 82. h6 {[%clk 0:00:09.6]} 82... Kh8 {[%clk 0:00:13.7]} 83.
Kg6 {[%clk 0:00:10.4]} 83... Kg8 {[%clk 0:00:14.6]} 84. Kh5 {[%clk 0:00:11.2]}
84... Kh8 {[%clk 0:00:15.5]} 85. Kg5 {[%clk 0:00:12.1]} 85... Kg8 {[%clk
0:00:16.4]} 86. Kh5 {[%clk 0:00:12.9]} 86... Kh8 {[%clk 0:00:17.3]} 87. Kg4
{[%clk 0:00:13.8]} 87... Kg8 {[%clk 0:00:18.2]} 88. Kg5 {[%clk 0:00:14.6]} 88...
Kh8 {[%clk 0:00:19.1]} 89. Kf5 {[%clk 0:00:15.4]} 89... Kg8 {[%clk 0:00:20]} 90.
Kf6 {[%clk 0:00:16.2]} 90... Kh8 {[%clk 0:00:20.9]} 91. Kg6 {[%clk 0:00:17.1]}
91... Kg8 {[%clk 0:00:21.8]} 92. Kg5 {[%clk 0:00:17.9]} 1/2-1/2

[Event "Late-Titled-Tuesday-Blitz-February-06-2024"]
[Site "Chess.com"]
[Date "2024.02.06"]
[Round "3"]
[White "tactic"]
[Black "ChadBiryani"]
[Result "1/2-1/2"]
[WhiteElo "2662"]
[BlackElo "2463"]
[TimeControl "180+1"]
[EndTime "14:31:10 PST"]
[Termination "Game drawn by agreement"]

1. e4 {[%clk 0:03:00.9]} 1... c5 {[%clk 0:02:59.3]} 2. c3 {[%clk 0:03:01]} 2...
Nf6 {[%clk 0:02:58.8]} 3. e5 {[%clk 0:03:01.5]} 3... Nd5 {[%clk 0:02:59.2]} 4.
Nf3 {[%clk 0:03:02.2]} 4... d6 {[%clk 0:02:58.2]} 5. Na3 {[%clk 0:03:00.5]} 5...
e6 {[%clk 0:02:47.8]} 6. Bb5+ {[%clk 0:02:50.9]} 6... Bd7 {[%clk 0:02:45]} 7.
Qe2 {[%clk 0:02:47]} 7... Nc6 {[%clk 0:02:39.3]} 8. O-O {[%clk 0:02:42.6]} 8...
a6 {[%clk 0:02:33.6]} 9. Bxc6 {[%clk 0:02:40.1]} 9... Bxc6 {[%clk 0:02:33.9]}
10. Nc4 {[%clk 0:02:40.9]} 10... b5 {[%clk 0:02:29.4]} 11. Nxd6+ {[%clk
0:02:38.8]} 11... Bxd6 {[%clk 0:02:30.1]} 12. exd6 {[%clk 0:02:39.7]} 12... Qxd6
{[%clk 0:02:30]} 13. d4 {[%clk 0:02:39.7]} 13... O-O {[%clk 0:02:27.4]} 14. Rd1
{[%clk 0:02:37.4]} 14... Rad8 {[%clk 0:02:20.8]} 15. Bg5 {[%clk 0:02:35]} 15...
Rd7 {[%clk 0:02:18.2]} 16. dxc5 {[%clk 0:02:33]} 16... Qxc5 {[%clk 0:02:16.5]}
17. Ne5 {[%clk 0:02:31]} 17... Rc7 {[%clk 0:01:55.9]} 18. Nd3 {[%clk 0:02:15.3]}
18... Qb6 {[%clk 0:01:43.9]} 19. Bh4 {[%clk 0:02:00.7]} 19... Ba8 {[%clk
0:01:37]} 20. Bg3 {[%clk 0:02:00.8]} 20... Rd7 {[%clk 0:01:33.5]} 21. Ne5 {[%clk
0:02:00.7]} 21... Rdd8 {[%clk 0:01:32.4]} 22. Rd4 {[%clk 0:01:56.1]} 22... Nf6
{[%clk 0:01:29]} 23. Rad1 {[%clk 0:01:51.5]} 23... Rxd4 {[%clk 0:01:25.9]} 24.
Rxd4 {[%clk 0:01:52.4]} 24... Rd8 {[%clk 0:01:24.9]} 25. Rxd8+ {[%clk
0:01:17.8]} 25... Qxd8 {[%clk 0:01:25.8]} 26. h3 {[%clk 0:01:07.2]} 26... Qd5
{[%clk 0:01:23.9]} 27. f3 {[%clk 0:00:43.4]} 27... Nd7 {[%clk 0:01:07.7]} 28.
Nxd7 {[%clk 0:00:35.4]} 28... Qxd7 {[%clk 0:01:08.6]} 29. Qe5 {[%clk 0:00:34.9]}
29... Bc6 {[%clk 0:01:07.7]} 30. Qb8+ {[%clk 0:00:30.9]} 30... Qe8 {[%clk
0:01:07.3]} 31. Qa7 {[%clk 0:00:31.1]} 31... Qc8 {[%clk 0:01:03.3]} 32. Kf2
{[%clk 0:00:25.5]} 32... h6 {[%clk 0:01:00.6]} 33. Be5 {[%clk 0:00:24.2]} 33...
Bd5 {[%clk 0:01:00.9]} 34. b3 {[%clk 0:00:24.3]} 34... f6 {[%clk 0:00:56.6]} 35.
Bd4 {[%clk 0:00:20.9]} 35... e5 {[%clk 0:00:49.8]} 36. Bc5 {[%clk 0:00:21.4]}
36... Qb7 {[%clk 0:00:50.4]} 37. Ke3 {[%clk 0:00:18.2]} 37... Kf7 {[%clk
0:00:49.8]} 38. Qxb7+ {[%clk 0:00:14.9]} 38... Bxb7 {[%clk 0:00:50.7]} 39. g4
{[%clk 0:00:11.1]} 39... g6 {[%clk 0:00:50.2]} 40. h4 {[%clk 0:00:11.6]} 40...
h5 {[%clk 0:00:48.8]} 41. gxh5 {[%clk 0:00:06.4]} 41... gxh5 {[%clk 0:00:49.7]}
42. f4 {[%clk 0:00:06.8]} 42... Ke6 {[%clk 0:00:50.2]} 43. fxe5 {[%clk
0:00:07.2]} 43... fxe5 {[%clk 0:00:40.8]} 44. Bf8 {[%clk 0:00:07.6]} 44... Kf5
{[%clk 0:00:41]} 45. Bg7 {[%clk 0:00:07.8]} 45... Bd5 {[%clk 0:00:38]} 46. Bf8
{[%clk 0:00:07.1]} 46... Kg4 {[%clk 0:00:36.1]} 47. Be7 {[%clk 0:00:07.4]} 47...
Kf5 {[%clk 0:00:36.8]} 48. Bg5 {[%clk 0:00:07.7]} 48... Be6 {[%clk 0:00:37]} 49.
Kd3 {[%clk 0:00:07.3]} 49... Bd5 {[%clk 0:00:35.9]} 50. Ke3 {[%clk 0:00:07.8]}
50... Be6 {[%clk 0:00:36.1]} 51. Ke2 {[%clk 0:00:07.3]} 51... Ke4 {[%clk
0:00:36.2]} 52. Kd2 {[%clk 0:00:07.8]} 52... Bg4 {[%clk 0:00:36.4]} 53. c4
{[%clk 0:00:07.6]} 53... bxc4 {[%clk 0:00:36]} 54. bxc4 {[%clk 0:00:08.5]} 54...
Kd4 {[%clk 0:00:36.3]} 55. Bf6 {[%clk 0:00:09.2]} 55... Bf3 {[%clk 0:00:32.3]}
56. c5 {[%clk 0:00:06.5]} 56... Kd5 {[%clk 0:00:32.3]} 57. c6 {[%clk 0:00:06.1]}
57... Kd6 {[%clk 0:00:24.5]} 58. c7 {[%clk 0:00:06.7]} 58... Bg4 {[%clk
0:00:24.2]} 59. Bd8 {[%clk 0:00:07.2]} 59... Kd5 {[%clk 0:00:18.1]} 60. Ke3
{[%clk 0:00:07]} 60... a5 {[%clk 0:00:15.6]} 61. c8=Q {[%clk 0:00:06.1]} 61...
Bxc8 {[%clk 0:00:15.3]} 62. Bxa5 {[%clk 0:00:07]} 62... Be6 {[%clk 0:00:15.3]}
63. Bc7 {[%clk 0:00:06.8]} 63... e4 {[%clk 0:00:10.8]} 64. a3 {[%clk 0:00:06.7]}
64... Bd7 {[%clk 0:00:10.7]} 65. Bd8 {[%clk 0:00:06.8]} 65... Ba4 {[%clk
0:00:11.1]} 66. Be7 {[%clk 0:00:07.4]} 66... Bd1 {[%clk 0:00:11.2]} 67. Kf4
{[%clk 0:00:07.6]} 67... Bf3 {[%clk 0:00:11.2]} 68. Bb4 {[%clk 0:00:08.2]} 68...
Kc4 {[%clk 0:00:11.6]} 69. Bd6 {[%clk 0:00:08.6]} 69... Kb5 {[%clk 0:00:11.9]}
70. Ke3 {[%clk 0:00:08.7]} 70... Ka4 {[%clk 0:00:12.4]} 71. Be7 {[%clk
0:00:09.1]} 71... Kb5 {[%clk 0:00:13]} 72. Kd4 {[%clk 0:00:09.6]} 72... Ka4
{[%clk 0:00:13.4]} 73. Kc4 {[%clk 0:00:09.4]} 73... Be2+ {[%clk 0:00:12.8]} 74.
Kd4 {[%clk 0:00:09.1]} 74... Bf3 {[%clk 0:00:13.4]} 75. Kc4 {[%clk 0:00:09.7]}
75... Be2+ {[%clk 0:00:13.4]} 76. Kc3 {[%clk 0:00:10.4]} 76... Bf3 {[%clk
0:00:13.9]} 77. Bc5 {[%clk 0:00:10.9]} 77... Be2 {[%clk 0:00:13.8]} 78. Kd4
{[%clk 0:00:11.1]} 78... Bf3 {[%clk 0:00:14.4]} 79. Bb4 {[%clk 0:00:10.9]} 79...
Bg2 {[%clk 0:00:14.7]} 80. Ke3 {[%clk 0:00:11.2]} 80... Bf3 {[%clk 0:00:15.1]}
81. Kf2 {[%clk 0:00:11.9]} 81... Bg4 {[%clk 0:00:14.8]} 82. Be7 {[%clk
0:00:11.8]} 82... Bf3 {[%clk 0:00:14.9]} 83. Ke3 {[%clk 0:00:12.7]} 83... Kb3
{[%clk 0:00:14.8]} 84. Bf8 {[%clk 0:00:13.6]} 84... Ka4 {[%clk 0:00:13.1]} 85.
Kd4 {[%clk 0:00:12.9]} 85... Bg2 {[%clk 0:00:11.8]} 86. Kc3 {[%clk 0:00:13.1]}
86... Bf3 {[%clk 0:00:12.1]} 87. Bd6 {[%clk 0:00:13.4]} 87... Bg4 {[%clk
0:00:12.3]} 88. Kb2 {[%clk 0:00:13]} 88... Bf3 {[%clk 0:00:12.6]} 89. Bc5 {[%clk
0:00:13.2]} 89... Be2 {[%clk 0:00:12.6]} 90. Be3 {[%clk 0:00:13.5]} 90... Bd3
{[%clk 0:00:12.9]} 91. Kc3 {[%clk 0:00:14]} 91... Be2 {[%clk 0:00:13.3]} 92. Kd4
{[%clk 0:00:14]} 92... Bd3 {[%clk 0:00:13.9]} 93. Bc1 {[%clk 0:00:14.3]} 93...
Bc2 {[%clk 0:00:13.5]} 94. Kc3 {[%clk 0:00:14.7]} 94... Bd3 {[%clk 0:00:13.8]}
95. Bb2 {[%clk 0:00:15]} 95... Be2 {[%clk 0:00:13.3]} 96. Kd4 {[%clk 0:00:15.4]}
96... Bf3 {[%clk 0:00:13.9]} 97. Bc1 {[%clk 0:00:16]} 97... Bg2 {[%clk 0:00:14]}
98. Ke3 {[%clk 0:00:16]} 98... Bf3 {[%clk 0:00:14.4]} 99. Kf2 {[%clk 0:00:16.3]}
99... Kb3 {[%clk 0:00:14.4]} 1/2-1/2

[Event "Late-Titled-Tuesday-Blitz-February-06-2024"]
[Site "Chess.com"]
[Date "2024.02.06"]
[Round "3"]
[White "ACollins05"]
[Black "temiksmozg"]
[Result "0-1"]
[WhiteElo "2417"]
[BlackElo "2619"]
[TimeControl "180+1"]
[EndTime "14:31:18 PST"]
[Termination "temiksmozg won by resignation"]

1. d4 {[%clk 0:03:00.9]} 1... d5 {[%clk 0:02:59.1]} 2. c4 {[%clk 0:03:00.5]}
2... e6 {[%clk 0:02:57.6]} 3. Nf3 {[%clk 0:03:00.2]} 3... Nf6 {[%clk 0:02:57.4]}
4. g3 {[%clk 0:02:59.7]} 4... Bb4+ {[%clk 0:02:57.9]} 5. Nbd2 {[%clk 0:02:58.8]}
5... dxc4 {[%clk 0:02:55.7]} 6. Qc2 {[%clk 0:02:54.8]} 6... b5 {[%clk
0:02:55.4]} 7. Bg2 {[%clk 0:02:54.2]} 7... c6 {[%clk 0:02:54.9]} 8. a4 {[%clk
0:02:51]} 8... Bb7 {[%clk 0:02:53]} 9. O-O {[%clk 0:02:48.6]} 9... a6 {[%clk
0:02:52.3]} 10. b3 {[%clk 0:02:46.2]} 10... cxb3 {[%clk 0:02:51.2]} 11. Nxb3
{[%clk 0:02:47.1]} 11... O-O {[%clk 0:02:45.5]} 12. Ne5 {[%clk 0:02:47.1]} 12...
Nd5 {[%clk 0:02:43.8]} 13. Bd2 {[%clk 0:02:40.6]} 13... Be7 {[%clk 0:02:42.1]}
14. Na5 {[%clk 0:02:38.4]} 14... Qc8 {[%clk 0:02:34.7]} 15. Rfc1 {[%clk
0:02:36.3]} 15... c5 {[%clk 0:02:12.5]} 16. dxc5 {[%clk 0:02:28]} 16... Bf6
{[%clk 0:02:12.1]} 17. c6 {[%clk 0:01:35.7]} 17... Nxc6 {[%clk 0:02:11.1]} 18.
Naxc6 {[%clk 0:01:25.5]} 18... Bxc6 {[%clk 0:02:12]} 19. Nxc6 {[%clk 0:01:25.1]}
19... Bxa1 {[%clk 0:02:10.9]} 20. Rxa1 {[%clk 0:01:09.1]} 20... Qb7 {[%clk
0:01:59.7]} 21. Na5 {[%clk 0:01:01.9]} 21... Qd7 {[%clk 0:01:57]} 22. Qc6 {[%clk
0:00:58.8]} 22... Qxc6 {[%clk 0:01:54.4]} 23. Nxc6 {[%clk 0:00:59.7]} 23... bxa4
{[%clk 0:01:53.1]} 24. Rxa4 {[%clk 0:00:58.1]} 24... Rfe8 {[%clk 0:01:53.4]} 25.
Bf1 {[%clk 0:00:48.1]} 25... Rec8 {[%clk 0:01:49.8]} 26. Nb4 {[%clk 0:00:39.4]}
26... Nb6 {[%clk 0:00:33.9]} 27. Rxa6 {[%clk 0:00:37]} 27... Rxa6 {[%clk
0:00:33.4]} 28. Nxa6 {[%clk 0:00:37.9]} 28... Rc2 {[%clk 0:00:33.5]} 29. Bf4
{[%clk 0:00:31]} 29... Nd5 {[%clk 0:00:33.3]} 30. Bd6 {[%clk 0:00:23.5]} 30...
Rc6 {[%clk 0:00:32.9]} 31. e4 {[%clk 0:00:21.3]} 31... Nc3 {[%clk 0:00:25.5]}
32. Bf4 {[%clk 0:00:14]} 32... Nxe4 {[%clk 0:00:25.2]} 33. Nb4 {[%clk
0:00:12.7]} 33... Rb6 {[%clk 0:00:22.9]} 34. Nd3 {[%clk 0:00:12.2]} 34... Nf6
{[%clk 0:00:22.5]} 35. Be3 {[%clk 0:00:11.8]} 35... Ra6 {[%clk 0:00:22.5]} 36.
Nc5 {[%clk 0:00:10.7]} 36... Ra2 {[%clk 0:00:21.9]} 37. h3 {[%clk 0:00:10.5]}
37... Nd5 {[%clk 0:00:21.6]} 38. Bd4 {[%clk 0:00:07.1]} 38... Rd2 {[%clk
0:00:20.2]} 39. Be3 {[%clk 0:00:07.1]} 39... Nxe3 {[%clk 0:00:19.8]} 40. fxe3
{[%clk 0:00:08]} 40... Rc2 {[%clk 0:00:20.1]} 41. Nd3 {[%clk 0:00:07.6]} 41...
f6 {[%clk 0:00:19.4]} 42. Nf2 {[%clk 0:00:07.8]} 42... Kf7 {[%clk 0:00:19.3]}
43. Kg2 {[%clk 0:00:08.1]} 43... h5 {[%clk 0:00:19]} 44. Kf3 {[%clk 0:00:08.3]}
44... g6 {[%clk 0:00:19.5]} 45. Bd3 {[%clk 0:00:08.5]} 45... Rb2 {[%clk
0:00:19.9]} 46. Ne4 {[%clk 0:00:08.2]} 46... Rb3 {[%clk 0:00:19.3]} 47. Bc4
{[%clk 0:00:07.7]} 47... Rb4 {[%clk 0:00:18.8]} 48. Ba2 {[%clk 0:00:06.5]} 48...
Ke7 {[%clk 0:00:18.4]} 49. Nc5 {[%clk 0:00:06.2]} 49... Rb2 {[%clk 0:00:16.6]}
50. Bxe6 {[%clk 0:00:04.2]} 50... Rb5 {[%clk 0:00:16.5]} 51. Nd3 {[%clk
0:00:02.3]} 51... Kxe6 {[%clk 0:00:16.3]} 52. Nf4+ {[%clk 0:00:02.8]} 52... Kf7
{[%clk 0:00:16.4]} 53. g4 {[%clk 0:00:03.6]} 53... hxg4+ {[%clk 0:00:16.2]} 54.
hxg4 {[%clk 0:00:04.5]} 54... g5 {[%clk 0:00:14.7]} 55. Ne2 {[%clk 0:00:04.8]}
55... Ra5 {[%clk 0:00:14.2]} 56. Ng3 {[%clk 0:00:05.4]} 56... Ke6 {[%clk
0:00:13.8]} 57. Ne4 {[%clk 0:00:05.7]} 57... Ke5 {[%clk 0:00:13.8]} 58. Ng3
{[%clk 0:00:05.8]} 58... Ra4 {[%clk 0:00:13.7]} 59. Nf5 {[%clk 0:00:06]} 59...
Ra1 {[%clk 0:00:13.6]} 60. Ng3 {[%clk 0:00:06.2]} 60... Rb1 {[%clk 0:00:13.7]}
61. Ne2 {[%clk 0:00:06]} 61... Rf1+ {[%clk 0:00:13.7]} 62. Kg2 {[%clk
0:00:06.2]} 62... Rd1 {[%clk 0:00:12.3]} 63. Kf3 {[%clk 0:00:06.3]} 63... Rd3
{[%clk 0:00:11.6]} 64. Ng3 {[%clk 0:00:06.6]} 64... Ra3 {[%clk 0:00:10.8]} 65.
Nf5 {[%clk 0:00:06.9]} 65... Ra1 {[%clk 0:00:11.1]} 66. Ng3 {[%clk 0:00:07.4]}
66... Rb1 {[%clk 0:00:11.5]} 67. Ne2 {[%clk 0:00:07.7]} 67... Re1 {[%clk
0:00:11.2]} 68. Ng3 {[%clk 0:00:07.6]} 68... Rg1 {[%clk 0:00:11]} 69. Ne2 {[%clk
0:00:07.5]} 69... Rh1 {[%clk 0:00:11.1]} 70. Ng3 {[%clk 0:00:08]} 70... Rh3
{[%clk 0:00:11]} 71. Kg2 {[%clk 0:00:07.8]} 71... Rh4 {[%clk 0:00:11.2]} 72. Kf3
{[%clk 0:00:07.9]} 72... Rh8 {[%clk 0:00:11.7]} 73. Nf5 {[%clk 0:00:07.7]} 73...
Rh3+ {[%clk 0:00:11.6]} 74. Ng3 {[%clk 0:00:07.2]} 74... Kd5 {[%clk 0:00:07.5]}
75. Kg2 {[%clk 0:00:07.2]} 75... Rh4 {[%clk 0:00:07.7]} 76. Kf3 {[%clk
0:00:07.5]} 76... Ke5 {[%clk 0:00:07.7]} 77. Nf5 {[%clk 0:00:07.4]} 77... Rh2
{[%clk 0:00:06.9]} 78. Ng3 {[%clk 0:00:08]} 78... Ra2 {[%clk 0:00:07.5]} 79. Ne2
{[%clk 0:00:07.8]} 79... Rxe2 {[%clk 0:00:04.8]} 80. Kxe2 {[%clk 0:00:08.7]}
80... Ke4 {[%clk 0:00:05.1]} 81. Kf2 {[%clk 0:00:09.1]} 81... Kd3 {[%clk
0:00:05.5]} 82. Kf3 {[%clk 0:00:09.3]} 82... Kd2 {[%clk 0:00:05.1]} 83. Ke4
{[%clk 0:00:09.4]} 83... Ke2 {[%clk 0:00:05.8]} 84. Kf5 {[%clk 0:00:09.6]} 84...
Kxe3 {[%clk 0:00:06.5]} 85. Kxf6 {[%clk 0:00:08.3]} 85... Kf4 {[%clk 0:00:07.4]}
86. Ke6 {[%clk 0:00:08.4]} 86... Kxg4 {[%clk 0:00:08.3]} 87. Kd5 {[%clk
0:00:08.9]} 87... Kf3 {[%clk 0:00:08.7]} 88. Kd4 {[%clk 0:00:09.6]} 88... g4
{[%clk 0:00:09.6]} 0-1